[Event "Turkish Cup 2022"]
[Site "Sakarya"]
[Date "2022.03.30"]
[Round "8.43"]
[White "Hatirli, Ugur Can"]
[Black "Ocakoglu, Orhan Kemal"]
[Result "1-0"]
[ECO "E60"]
[WhiteElo "1818"]
[BlackElo "1482"]
[Annotator "NA"]
[PlyCount "147"]
[EventDate "2022.03.25"]
[EventType "swiss"]
[EventCountry "TUR"]
[SourceTitle "playchess.com"]
[Source "ChessBase"]
[SourceQuality "1"]
[TimeControl "5400+30"]

1. c4 {[%emt 0:01:00]} c5 {[%emt 0:01:00]} 2. g3 {[%emt 0:00:30]} g6 {[%emt 0:01:30]} 3. Bg2 {[%emt 0:00:30]} Bg7 {[%emt 0:00:30]} 4. Nc3 {[%emt 0:00:00]} Nc6 {[%emt 0:05:30]} 5. Nf3 {[%emt 0:00:00]} d6 {[%emt 0:01:30]} 6. O-O {[%emt 0:00:30]} Nf6 {[%emt 0:04:30]} 7. d4 {[%emt 0:00:30]} cxd4 {[%emt 0:00:30]} 8. Nxd4 {[%emt 0:00:00]} Bd7 {[%emt 0:00:00]} 9. b3 {[%emt 0:03:00]} O-O {[%emt 0:11:00]} 10. Bb2 {[%emt 0:02:30]} Nxd4 {[%emt 0:00:30]} 11. Qxd4 {[%emt 0:02:30]} Ng4 {[%emt 0:08:30]} 12. Qd2 {[%emt 0:04:30]} Bc6 {[%emt 0:00:30]} 13. e4 {[%emt 0:00:30]} Qa5 {[%emt 0:01:30]} 14. h3 {[%emt 0:01:30]} Nf6 {[%emt 0:00:30]} 15. Rad1 {[%emt 0:00:30]} a6 {[%emt 0:06:30]} 16. Nd5 {[%emt 0:02:30]} Qd8 {[%emt 0:07:30]} 17. Nxf6+ {[%emt 0:00:30]} exf6 {[%emt 0:02:30]} 18. Qxd6 {[%emt 0:08:30]} Qa5 {[%emt 0:00:30]} 19. Qa3 {[%emt 0:00:30]} Qg5 {[%emt 0:04:30]} 20. Bc1 {[%emt 0:02:30]} Qh5 {[%emt 0:01:30]} 21. Bf4 {[%emt 0:02:30]} Rfe8 {[%emt 0:01:30]} 22. g4 {[%emt 0:01:30]} Qh4 {[%emt 0:00:30]} 23. Bg3 {[%emt 0:01:30]} Qh6 {[%emt 0:00:30]} 24. Rfe1 {[%emt 0:04:30]} Rad8 {[%emt 0:08:30]} 25. Qa5 {[%emt 0:02:30]} Rxd1 {[%emt 0:12:26]} 26. Rxd1 {[%emt 0:00:30]} Qg5 {[%emt 0:01:12]} 27. Qb6 {[%emt 0:05:30]} f5 {[%emt 0:03:44]} 28. exf5 {[%emt 0:01:30]} Bxg2 {[%emt 0:00:49]} 29. Kxg2 {[%emt 0:00:30]} gxf5 {[%emt 0:00:07]} 30. Rd5 {[%emt 0:00:30]} Qe7 {[%emt 0:03:09]} 31. Rxf5 {[%emt 0:00:30]} Qe4+ {[%emt 0:00:27]} 32. Rf3 {[%emt 0:02:30]} Re6 {[%emt 0:07:38]} 33. Qd8+ {[%emt 0:01:30]} Bf8 {[%emt 0:00:19]} 34. Qg5+ {[%emt 0:00:30]} Rg6 {[%emt 0:00:50]} 35. Qf5 {[%emt 0:00:00]} Qe7 {[%emt 0:00:14]} 36. Bh4 {[%emt 0:01:00]} Qc7 {[%emt 0:00:14]} 37. Bd8 {[%emt 0:00:30]} Qxd8 {[%emt 0:01:35]} 38. Qxf7+ {[%emt 0:00:30]} Kh8 {[%emt 0:00:30]} 39. Qxf8+ {[%emt 0:00:30]} Qxf8 {[%emt 0:00:30]} 40. Rxf8+ {[%emt 0:00:00]} Kg7 {[%emt 0:00:00]} 41. Rb8 {[%emt 0:00:00]} b6 {[%emt 0:00:00]} 42. Rb7+ {[%emt 0:00:00]} Kh6 {[%emt 0:00:00]} 43. Kg3 {[%emt 0:00:00]} Rd6 {[%emt 0:00:00]} 44. Ra7 {[%emt 0:00:00]} a5 {[%emt 0:00:47]} 45. Ra6 {[%emt 0:00:00]} Rc6 {[%emt 0:00:25]} 46. f4 {[%emt 0:00:30]} Kg6 {[%emt 0:00:30]} 47. c5 {[%emt 0:00:30]} Rxc5 {[%emt 0:00:00]} 48. Rxb6+ {[%emt 0:00:00]} Kg7 {[%emt 0:00:22]} 49. g5 {[%emt 0:00:00]} Rc2 {[%emt 0:00:15]} 50. a4 {[%emt 0:00:00]} Rd2 {[%emt 0:00:24]} 51. Kg4 {[%emt 0:00:00]} Rd4 {[%emt 0:00:30]} 52. Rb5 {[%emt 0:00:30]} Rd3 {[%emt 0:00:30]} 53. h4 {[%emt 0:00:30]} Kf7 {[%emt 0:00:30]} 54. Rb7+ {[%emt 0:00:30]} Kg8 {[%emt 0:00:30]} 55. h5 {[%emt 0:00:30]} Rd5 {[%emt 0:00:30]} 56. h6 {[%emt 0:00:30]} Rc5 {[%emt 0:00:30]} 57. Rb5 {[%emt 0:00:30]} Rc3 {[%emt 0:00:30]} 58. Rb8+ {[%emt 0:00:30]} Kf7 {[%emt 0:00:30]} 59. Rb7+ {[%emt 0:00:30]} Kg8 {[%emt 0:00:30]} 60. Rg7+ {[%emt 0:00:30]} Kh8 {[%emt 0:00:30]} 61. Ra7 {[%emt 0:00:30]} Kg8 {[%emt 0:00:30]} 62. Rxa5 {[%emt 0:00:30]} Rxb3 {[%emt 0:00:30]} 63. Rb5 {[%emt 0:00:00]} Ra3 {[%emt 0:00:00]} 64. a5 {[%emt 0:00:00]} Ra1 {[%emt 0:00:00]} 65. Kf5 {[%emt 0:00:00]} Kf8 {[%emt 0:00:37]} 66. Kf6 {[%emt 0:00:00]} Ke8 {[%emt 0:01:43]} 67. g6 {[%emt 0:00:00]} hxg6 {[%emt 0:00:48]} 68. h7 {[%emt 0:00:00]} g5 {[%emt 0:00:53]} 69. h8=Q+ {[%emt 0:00:00]} Kd7 {[%emt 0:00:30]} 70. Rd5+ {[%emt 0:00:00]} Kc6 {[%emt 0:00:00]} 71. Qa8+ {[%emt 0:00:00]} Kc7 {[%emt 0:00:00]} 72. Qa7+ {[%emt 0:00:00]} Kc8 {[%emt 0:00:00]} 73. Rc5+ {[%emt 0:00:00]} Kd8 {[%emt 0:00:21]} 74. Qe7# {[%emt 0:00:00]} 1-0

[Event "Turkish Cup 2022"]
[Site "Sakarya"]
[Date "2022.03.30"]
[Round "8.44"]
[White "Arslan, Tayfun"]
[Black "Serbulent, Huseyin"]
[Result "1/2-1/2"]
[ECO "B06"]
[WhiteElo "1512"]
[BlackElo "1775"]
[Annotator "NA"]
[PlyCount "85"]
[EventDate "2022.03.25"]
[EventType "swiss"]
[EventCountry "TUR"]
[SourceTitle "playchess.com"]
[Source "ChessBase"]
[SourceQuality "1"]
[TimeControl "5400+30"]

1. e4 {[%emt 0:01:00]} g6 {[%emt 0:01:00]} 2. d4 {[%emt 0:00:30]} Bg7 {[%emt 0:00:30]} 3. f4 {[%emt 0:00:00]} d5 {[%emt 0:00:30]} 4. e5 {[%emt 0:00:00]} Nh6 {[%emt 0:00:30]} 5. Nf3 {[%emt 0:00:30]} O-O {[%emt 0:00:30]} 6. Bd3 {[%emt 0:00:00]} c5 {[%emt 0:00:30]} 7. c3 {[%emt 0:00:00]} cxd4 {[%emt 0:00:30]} 8. cxd4 {[%emt 0:00:30]} Nc6 {[%emt 0:00:30]} 9. O-O {[%emt 0:00:30]} Bg4 {[%emt 0:01:30]} 10. h3 {[%emt 0:04:30]} Bxf3 {[%emt 0:00:30]} 11. Qxf3 {[%emt 0:01:30]} Nxd4 {[%emt 0:00:30]} 12. Qf2 {[%emt 0:00:00]} Nc6 {[%emt 0:00:30]} 13. Kh1 {[%emt 0:02:00]} Nb4 {[%emt 0:01:30]} 14. Bb5 {[%emt 0:03:30]} Rc8 {[%emt 0:00:30]} 15. Na3 {[%emt 0:00:30]} a6 {[%emt 0:01:30]} 16. Be2 {[%emt 0:03:30]} Nc2 {[%emt 0:04:30]} 17. Nxc2 {[%emt 0:00:30]} Rxc2 {[%emt 0:00:30]} 18. g4 {[%emt 0:00:30]} e6 {[%emt 0:00:30]} 19. Qf3 {[%emt 0:03:30]} f6 {[%emt 0:07:30]} 20. Qd3 {[%emt 0:02:30]} Rc4 {[%emt 0:09:30]} 21. exf6 {[%emt 0:02:30]} Bxf6 {[%emt 0:00:30]} 22. g5 {[%emt 0:05:30]} Bxg5 {[%emt 0:02:30]} 23. fxg5 {[%emt 0:00:00]} Rxf1+ {[%emt 0:01:30]} 24. Bxf1 {[%emt 0:00:00]} Nf5 {[%emt 0:00:30]} 25. Be3 {[%emt 0:03:30]} Qc7 {[%emt 0:02:30]} 26. Bf2 {[%emt 0:23:30]} Qf4 {[%emt 0:02:30]} 27. Kg1 {[%emt 0:04:30]} Qxg5+ {[%emt 0:10:30]} 28. Kh1 {[%emt 0:04:30]} Rf4 {[%emt 0:03:30]} 29. Qc2 {[%emt 0:02:30]} d4 {[%emt 0:14:30]} 30. Re1 {[%emt 0:05:30]} Ng3+ {[%emt 0:09:30]} 31. Bxg3 {[%emt 0:02:30]} Qxg3 {[%emt 0:00:00]} 32. Qc8+ {[%emt 0:01:30]} Kg7 {[%emt 0:01:00]} 33. Qxb7+ {[%emt 0:00:30]} Kh6 {[%emt 0:05:27]} 34. Rd1 {[%emt 0:03:30]} Rf2 {[%emt 0:03:07]} 35. Bg2 {[%emt 0:00:30]} d3 {[%emt 0:00:00]} 36. Qe4 {[%emt 0:10:23]} Re2 {[%emt 0:03:48]} 37. Qf3 {[%emt 0:00:33]} Re1+ {[%emt 0:01:04]} 38. Rxe1 {[%emt 0:00:30]} Qxe1+ {[%emt 0:00:00]} 39. Kh2 {[%emt 0:00:22]} d2 {[%emt 0:02:01]} 40. Qf4+ {[%emt 0:00:50]} Kg7 {[%emt 0:00:29]} 41. Qc7+ {[%emt 0:00:09]} Kf8 {[%emt 0:02:40]} 42. Qd8+ {[%emt 0:00:15]} Kg7 {[%emt 0:01:10]} 43. Qc7+ {[%emt 0:00:02]} 1/2-1/2

[Event "Turkish Cup 2022"]
[Site "Sakarya"]
[Date "2022.03.30"]
[Round "8.45"]
[White "Aysoy, Veysi"]
[Black "Er, Mira"]
[Result "1-0"]
[ECO "A02"]
[WhiteElo "1811"]
[BlackElo "1415"]
[Annotator "NA"]
[PlyCount "51"]
[EventDate "2022.03.25"]
[EventType "swiss"]
[EventCountry "TUR"]
[SourceTitle "playchess.com"]
[Source "ChessBase"]
[SourceQuality "1"]
[TimeControl "5400+30"]

1. f4 {[%emt 0:01:00]} e5 {[%emt 0:01:00]} 2. fxe5 {[%emt 0:04:30]} d6 {[%emt 0:00:30]} 3. exd6 {[%emt 0:02:30]} Bxd6 {[%emt 0:00:30]} 4. Nf3 {[%emt 0:00:30]} Nf6 {[%emt 0:00:00]} 5. d4 {[%emt 0:02:30]} Ng4 {[%emt 0:01:00]} 6. g3 {[%emt 0:03:30]} Nxh2 {[%emt 0:00:30]} 7. Rxh2 {[%emt 0:00:30]} Bxg3+ {[%emt 0:00:30]} 8. Rf2 {[%emt 0:00:00]} Bxf2+ {[%emt 0:00:30]} 9. Kxf2 {[%emt 0:00:00]} Bg4 {[%emt 0:00:30]} 10. Bf4 {[%emt 0:05:30]} Nc6 {[%emt 0:02:30]} 11. d5 {[%emt 0:14:30]} Ne7 {[%emt 0:00:30]} 12. Nc3 {[%emt 0:03:30]} Ng6 {[%emt 0:00:30]} 13. Bg3 {[%emt 0:01:30]} O-O {[%emt 0:13:30]} 14. Bg2 {[%emt 0:05:30]} f5 {[%emt 0:04:30]} 15. Kg1 {[%emt 0:03:30]} f4 {[%emt 0:01:30]} 16. Bf2 {[%emt 0:05:30]} Rf5 {[%emt 0:02:30]} 17. Qd4 {[%emt 0:04:30]} h5 {[%emt 0:04:30]} 18. Kh2 {[%emt 0:05:30]} h4 {[%emt 0:02:30]} 19. Rg1 {[%emt 0:03:30]} Qd7 {[%emt 0:12:30]} 20. Bh1 {[%emt 0:03:30]} Rh5 {[%emt 0:03:30]} 21. Bg2 {[%emt 0:05:30]} Rf5 {[%emt 0:08:30]} 22. Bf1 {[%emt 0:03:30]} Rh5 {[%emt 0:01:30]} 23. Rxg4 {[%emt 0:03:19]} Ne5 {[%emt 0:03:30]} 24. Nxe5 {[%emt 0:02:13]} Rxe5 {[%emt 0:00:00]} 25. Qxe5 {[%emt 0:01:46]} Qxg4 {[%emt 0:00:00]} 26. Bh3 {[%emt 0:01:06]} 1-0

[Event "Turkish Cup 2022"]
[Site "Sakarya"]
[Date "2022.03.30"]
[Round "8.46"]
[White "Zaimov, Berk"]
[Black "Gok, Emre"]
[Result "0-1"]
[ECO "B05"]
[WhiteElo "1498"]
[BlackElo "1745"]
[Annotator "NA RC"]
[PlyCount "90"]
[EventDate "2022.03.25"]
[EventType "swiss"]
[EventCountry "TUR"]
[SourceTitle "playchess.com"]
[Source "ChessBase"]
[SourceQuality "1"]
[TimeControl "5400+30"]

1. e4 {[%emt 0:06:00]} Nf6 {[%emt 0:01:00]} 2. e5 {[%emt 0:00:30]} Nd5 {[%emt 0:00:30]} 3. d4 {[%emt 0:00:30]} d6 {[%emt 0:00:30]} 4. Nf3 {[%emt 0:00:30]} Bg4 {[%emt 0:00:30]} 5. exd6 {[%emt 0:00:30]} exd6 {[%emt 0:00:00]} 6. c4 {[%emt 0:02:30]} Nb6 {[%emt 0:00:00]} 7. Be2 {[%emt 0:04:30]} Be7 {[%emt 0:00:00]} 8. Bd2 {[%emt 0:08:30]} O-O {[%emt 0:00:00]} 9. b3 {[%emt 0:00:30]} Nc6 {[%emt 0:00:30]} 10. Bc3 {[%emt 0:00:30]} Bf6 {[%emt 0:03:30]} 11. O-O {[%emt 0:00:30]} a5 {[%emt 0:04:30]} 12. a4 {[%emt 0:00:00]} d5 {[%emt 0:06:30]} 13. c5 {[%emt 0:01:00]} Nd7 {[%emt 0:02:30]} 14. Qd2 {[%emt 0:12:30]} Re8 {[%emt 0:02:30]} 15. Ra2 {[%emt 0:00:00]} Nf8 {[%emt 0:15:30]} 16. Na3 {[%emt 0:04:00]} Ne6 {[%emt 0:10:30]} 17. Nb5 {[%emt 0:08:30]} Ng5 {[%emt 0:07:30]} 18. Qf4 {[%emt 0:06:30]} Rxe2 {[%emt 0:12:30]} 19. Rxe2 {[%emt 0:03:30]} Bxf3 {[%emt 0:00:30]} 20. Re3 {[%emt 0:01:30]} Be4 {[%emt 0:01:30]} 21. Rfe1 {[%emt 0:17:30]} Ne6 {[%emt 0:01:30]} 22. Qg4 {[%emt 0:01:34]} Bg6 {[%emt 0:08:30]} 23. f4 {[%emt 0:06:38]} Ncxd4 {[%emt 0:05:27]} 24. Bxd4 {[%emt 0:11:06]} Bxd4 {[%emt 0:05:19]} 25. Nxd4 {[%emt 0:00:14]} Nxd4 {[%emt 0:00:02]} 26. Re8+ {[%emt 0:00:42]} Qxe8 {[%emt 0:00:01]} 27. Rxe8+ {[%emt 0:00:00]} Rxe8 {[%emt 0:00:31]} 28. Qd7 {[%emt 0:00:00]} Rb8 {[%emt 0:07:56]} 29. Qxc7 {[%emt 0:00:24]} Nc6 {[%emt 0:00:24]} 30. g4 {[%emt 0:01:16]} Bc2 {[%emt 0:00:15]} 31. f5 {[%emt 0:01:11]} Bxb3 {[%emt 0:01:31]} 32. g5 {[%emt 0:00:32]} d4 {[%emt 0:01:34]} 33. Kf1 {[%emt 0:00:09]} Bxa4 {[%emt 0:00:27]} 34. f6 {[%emt 0:01:01]} Bb3 {[%emt 0:00:22]} 35. h4 {[%emt 0:00:25]} a4 {[%emt 0:00:24]} 36. h5 {[%emt 0:00:25]} a3 {[%emt 0:00:22]} 37. g6 {[%emt 0:00:26]} hxg6 {[%emt 0:00:57]} 38. Qh2 {[%emt 0:02:38]} a2 {[%emt 0:00:46]} 39. Qb2 {[%emt 0:00:30]} Ra8 {[%emt 0:00:30]} 40. Qa1 {[%emt 0:00:00]} gxf6 {[%emt 0:00:00]} 41. Ke2 {[%emt 0:00:04]} gxh5 {[%emt 0:00:36]} 42. Kd2 {[%emt 0:00:18]} Be6 {[%emt 0:00:46]} 43. Kc1 {[%emt 0:00:37]} Ra5 {[%emt 0:00:15]} 44. Kb2 {[%emt 0:00:00]} Rb5+ {[%emt 0:00:24]} 45. Ka3 {[%emt 0:01:10]} Rb1 {[%emt 0:00:09]} 0-1

[Event "Turkish Cup 2022"]
[Site "Sakarya"]
[Date "2022.03.30"]
[Round "8.47"]
[White "Sahin, Handenur"]
[Black "Sezis, Doruk"]
[Result "1-0"]
[ECO "B22"]
[WhiteElo "1997"]
[BlackElo "1566"]
[Annotator "ChessBase"]
[PlyCount "153"]
[EventDate "2022.03.25"]
[EventType "swiss"]
[EventCountry "TUR"]
[SourceTitle "playchess.com"]
[Source "ChessBase"]
[SourceQuality "1"]
[TimeControl "5400+30"]

1. e4 {[%emt 0:02:00]} c5 {[%emt 0:01:00]} 2. c3 {[%emt 0:00:30]} Nf6 {[%emt 0:00:00]} 3. e5 {[%emt 0:00:30]} Nd5 {[%emt 0:01:00]} 4. d4 {[%emt 0:00:30]} cxd4 {[%emt 0:00:00]} 5. Nf3 {[%emt 0:00:30]} Nc6 {[%emt 0:00:00]} 6. cxd4 {[%emt 0:00:30]} d6 {[%emt 0:00:30]} 7. Bc4 {[%emt 0:00:30]} Nb6 {[%emt 0:00:00]} 8. Bb3 {[%emt 0:03:30]} dxe5 {[%emt 0:02:00]} 9. Nxe5 {[%emt 0:06:30]} e6 {[%emt 0:01:30]} 10. Nf3 {[%emt 0:04:30]} Nb4 {[%emt 0:06:30]} 11. O-O {[%emt 0:04:30]} Be7 {[%emt 0:00:30]} 12. Nc3 {[%emt 0:00:30]} O-O {[%emt 0:01:30]} 13. Qe2 {[%emt 0:05:30]} N4d5 {[%emt 0:01:30]} 14. Ne4 {[%emt 0:06:30]} Bd7 {[%emt 0:04:30]} 15. a4 {[%emt 0:06:30]} a5 {[%emt 0:01:30]} 16. Ne5 {[%emt 0:03:30]} Bc6 {[%emt 0:17:30]} 17. Ng3 {[%emt 0:10:30]} Nf6 {[%emt 0:08:30]} 18. Nxc6 {[%emt 0:04:30]} bxc6 {[%emt 0:00:30]} 19. Be3 {[%emt 0:03:30]} Nbd5 {[%emt 0:03:30]} 20. Rac1 {[%emt 0:00:30]} Qb6 {[%emt 0:00:30]} 21. Bc4 {[%emt 0:03:30]} Rfd8 {[%emt 0:03:30]} 22. Rfd1 {[%emt 0:02:30]} Rac8 {[%emt 0:04:30]} 23. Bg5 {[%emt 0:02:30]} h6 {[%emt 0:03:30]} 24. Be3 {[%emt 0:05:30]} Bd6 {[%emt 0:06:30]} 25. Nh5 {[%emt 0:03:30]} Nxh5 {[%emt 0:01:30]} 26. Qxh5 {[%emt 0:00:30]} Qxb2 {[%emt 0:00:30]} 27. Rb1 {[%emt 0:01:29]} Qc2 {[%emt 0:02:30]} 28. Bd3 {[%emt 0:01:06]} Qxa4 {[%emt 0:05:30]} 29. Bxh6 {[%emt 0:00:58]} gxh6 {[%emt 0:02:30]} 30. Qxh6 {[%emt 0:00:30]} Bf4 {[%emt 0:00:30]} 31. Qh7+ {[%emt 0:00:30]} Kf8 {[%emt 0:00:30]} 32. Bc2 {[%emt 0:04:16]} Qa3 {[%emt 0:00:30]} 33. g3 {[%emt 0:01:11]} Bg5 {[%emt 0:00:30]} 34. Rb7 {[%emt 0:01:56]} Nc7 {[%emt 0:02:48]} 35. h4 {[%emt 0:03:38]} Bf6 {[%emt 0:00:12]} 36. Rd3 {[%emt 0:02:08]} Qc1+ {[%emt 0:02:06]} 37. Rd1 {[%emt 0:00:53]} Qa3 {[%emt 0:00:01]} 38. Rd3 {[%emt 0:00:52]} Qd6 {[%emt 0:06:22]} 39. Rf3 {[%emt 0:00:42]} Qxd4 {[%emt 0:00:08]} 40. Qh6+ {[%emt 0:02:01]} Ke7 {[%emt 0:03:08]} 41. Qc1 {[%emt 0:00:33]} Qe5 {[%emt 0:04:42]} 42. Qa3+ {[%emt 0:00:30]} Ke8 {[%emt 0:00:30]} 43. Kg2 {[%emt 0:01:25]} Be7 {[%emt 0:01:48]} 44. Qc1 {[%emt 0:00:29]} Qg7 {[%emt 0:01:05]} 45. Ba4 {[%emt 0:00:45]} Nd5 {[%emt 0:00:51]} 46. Qc4 {[%emt 0:01:29]} Kf8 {[%emt 0:00:26]} 47. Qe4 {[%emt 0:00:42]} Nf6 {[%emt 0:02:17]} 48. Qc4 {[%emt 0:00:30]} Qg4 {[%emt 0:00:30]} 49. Rf4 {[%emt 0:00:48]} Qh5 {[%emt 0:00:26]} 50. Qc3 {[%emt 0:00:44]} Nd5 {[%emt 0:00:20]} 51. Qd2 {[%emt 0:01:07]} Nxf4+ {[%emt 0:00:30]} 52. Qxf4 {[%emt 0:00:00]} e5 {[%emt 0:00:26]} 53. Qc4 {[%emt 0:00:00]} e4 {[%emt 0:00:29]} 54. Qxe4 {[%emt 0:00:32]} Bd6 {[%emt 0:02:07]} 55. Bxc6 {[%emt 0:01:08]} Rc7 {[%emt 0:00:30]} 56. Rb5 {[%emt 0:00:30]} Qg6 {[%emt 0:00:30]} 57. Qf3 {[%emt 0:00:30]} Qh6 {[%emt 0:01:08]} 58. Rh5 {[%emt 0:00:23]} Qg7 {[%emt 0:00:46]} 59. Rg5 {[%emt 0:00:12]} Qh6 {[%emt 0:00:00]} 60. Rh5 {[%emt 0:00:17]} Qg7 {[%emt 0:00:23]} 61. Rg5 {[%emt 0:00:04]} Qd4 {[%emt 0:00:32]} 62. Rg4 {[%emt 0:02:17]} Qe5 {[%emt 0:00:52]} 63. Rg5 {[%emt 0:00:15]} Qd4 {[%emt 0:00:23]} 64. Rg4 {[%emt 0:00:09]} Qc5 {[%emt 0:00:26]} 65. Be4 {[%emt 0:00:09]} Qe5 {[%emt 0:00:22]} 66. Rg5 {[%emt 0:00:09]} Qd4 {[%emt 0:00:48]} 67. Rd5 {[%emt 0:00:47]} Qg7 {[%emt 0:00:30]} 68. Rg5 {[%emt 0:00:05]} Qh8 {[%emt 0:00:33]} 69. Qf5 {[%emt 0:00:45]} Re7 {[%emt 0:00:33]} 70. Bd5 {[%emt 0:01:12]} f6 {[%emt 0:00:29]} 71. Rh5 {[%emt 0:00:39]} Qg7 {[%emt 0:00:03]} 72. Rg5 {[%emt 0:01:03]} Qh8 {[%emt 0:00:30]} 73. Rg6 {[%emt 0:00:00]} Be5 {[%emt 0:00:42]} 74. f4 {[%emt 0:00:27]} Rxd5 {[%emt 0:00:51]} 75. fxe5 {[%emt 0:00:07]} Rdxe5 {[%emt 0:00:14]} 76. Rxf6+ {[%emt 0:00:16]} Kg8 {[%emt 0:00:41]} 77. Rf8+ {[%emt 0:00:15]} 1-0

[Event "Turkish Cup 2022"]
[Site "Sakarya"]
[Date "2022.03.30"]
[Round "9.1"]
[White "Yavuz, Efe Metehan"]
[Black "Yurtseven, Melih"]
[Result "1-0"]
[ECO "A05"]
[WhiteElo "2054"]
[BlackElo "2388"]
[Annotator "NA"]
[PlyCount "111"]
[EventDate "2022.03.25"]
[EventType "swiss"]
[EventCountry "TUR"]
[SourceTitle "playchess.com"]
[Source "ChessBase"]
[SourceQuality "1"]
[TimeControl "5400+30"]

1. Nf3 {[%emt 0:02:00]} Nf6 {[%emt 0:02:00]} 2. g3 {[%emt 0:00:30]} b5 {[%emt 0:00:30]} 3. Bg2 {[%emt 0:00:30]} Bb7 {[%emt 0:00:30]} 4. O-O {[%emt 0:00:30]} e6 {[%emt 0:00:30]} 5. d3 {[%emt 0:00:00]} c5 {[%emt 0:02:30]} 6. e4 {[%emt 0:00:00]} d6 {[%emt 0:00:30]} 7. Nbd2 {[%emt 0:05:30]} Nbd7 {[%emt 0:00:30]} 8. Re1 {[%emt 0:00:30]} Be7 {[%emt 0:02:30]} 9. c3 {[%emt 0:08:30]} O-O {[%emt 0:02:30]} 10. d4 {[%emt 0:07:30]} cxd4 {[%emt 0:06:30]} 11. cxd4 {[%emt 0:00:30]} Qb6 {[%emt 0:00:30]} 12. b3 {[%emt 0:06:30]} Rfc8 {[%emt 0:02:30]} 13. Bb2 {[%emt 0:01:30]} a5 {[%emt 0:02:30]} 14. Bf1 {[%emt 0:09:30]} d5 {[%emt 0:02:30]} 15. e5 {[%emt 0:03:30]} Ne8 {[%emt 0:01:30]} 16. a4 {[%emt 0:14:30]} Ba6 {[%emt 0:02:30]} 17. axb5 {[%emt 0:06:30]} Bxb5 {[%emt 0:00:30]} 18. Ba3 {[%emt 0:02:30]} Bxa3 {[%emt 0:11:30]} 19. Bxb5 {[%emt 0:00:00]} Qxb5 {[%emt 0:07:30]} 20. Rxa3 {[%emt 0:00:00]} Nb8 {[%emt 0:03:30]} 21. Qa1 {[%emt 0:01:30]} Rc2 {[%emt 0:03:30]} 22. Qb1 {[%emt 0:04:30]} Rc3 {[%emt 0:03:30]} 23. Qb2 {[%emt 0:01:30]} Rc7 {[%emt 0:00:30]} 24. Kg2 {[%emt 0:01:30]} Ra6 {[%emt 0:02:30]} 25. Raa1 {[%emt 0:03:30]} a4 {[%emt 0:11:30]} 26. Reb1 {[%emt 0:02:41]} Rb7 {[%emt 0:00:30]} 27. Qc1 {[%emt 0:01:58]} Rc7 {[%emt 0:07:30]} 28. Qb2 {[%emt 0:03:09]} axb3 {[%emt 0:01:30]} 29. Rxa6 {[%emt 0:00:48]} Nxa6 {[%emt 0:00:30]} 30. Qxb3 {[%emt 0:01:36]} Qxb3 {[%emt 0:00:30]} 31. Rxb3 {[%emt 0:00:04]} Rc2 {[%emt 0:00:30]} 32. h4 {[%emt 0:01:19]} h6 {[%emt 0:00:00]} 33. g4 {[%emt 0:01:42]} Kh7 {[%emt 0:01:00]} 34. h5 {[%emt 0:00:22]} g6 {[%emt 0:00:33]} 35. hxg6+ {[%emt 0:00:41]} fxg6 {[%emt 0:02:18]} 36. Rb7+ {[%emt 0:01:10]} Nac7 {[%emt 0:01:19]} 37. Nb3 {[%emt 0:00:52]} Rb2 {[%emt 0:01:34]} 38. Ne1 {[%emt 0:00:06]} g5 {[%emt 0:06:07]} 39. Nd3 {[%emt 0:01:11]} Rb1 {[%emt 0:01:01]} 40. Ndc5 {[%emt 0:02:40]} Kg6 {[%emt 0:00:32]} 41. Rb6 {[%emt 0:00:22]} Rb2 {[%emt 0:06:33]} 42. Nd3 {[%emt 0:03:03]} Rb1 {[%emt 0:01:11]} 43. Ndc5 {[%emt 0:00:16]} Rb2 {[%emt 0:00:00]} 44. Rc6 {[%emt 0:01:17]} Rc2 {[%emt 0:00:17]} 45. Na5 {[%emt 0:00:40]} Kh7 {[%emt 0:04:02]} 46. Rb6 {[%emt 0:01:01]} Ng7 {[%emt 0:00:20]} 47. Rb7 {[%emt 0:00:00]} Nce8 {[%emt 0:00:41]} 48. Nxe6 {[%emt 0:00:07]} Rc3 {[%emt 0:00:27]} 49. Rd7 {[%emt 0:00:59]} Ra3 {[%emt 0:00:19]} 50. Nc6 {[%emt 0:00:07]} Ra6 {[%emt 0:00:36]} 51. Nxg7 {[%emt 0:00:30]} Nxg7 {[%emt 0:00:00]} 52. Ne7 {[%emt 0:00:47]} Kh8 {[%emt 0:00:03]} 53. Nxd5 {[%emt 0:00:13]} Ne6 {[%emt 0:01:31]} 54. Nf6 {[%emt 0:00:30]} Nf8 {[%emt 0:00:07]} 55. Rf7 {[%emt 0:00:25]} Ra8 {[%emt 0:00:30]} 56. e6 {[%emt 0:00:00]} 1-0

[Event "Turkish Cup 2022"]
[Site "Sakarya"]
[Date "2022.03.30"]
[Round "9.2"]
[White "Koksal, Ege"]
[Black "Yaran, Siar"]
[Result "1/2-1/2"]
[ECO "D35"]
[WhiteElo "2343"]
[BlackElo "2272"]
[Annotator "NA"]
[PlyCount "30"]
[EventDate "2022.03.25"]
[EventType "swiss"]
[EventCountry "TUR"]
[SourceTitle "playchess.com"]
[Source "ChessBase"]
[SourceQuality "1"]
[TimeControl "5400+30"]

1. d4 {[%emt 0:01:00]} d5 {[%emt 0:01:00]} 2. c4 {[%emt 0:00:30]} e6 {[%emt 0:00:00]} 3. Nc3 {[%emt 0:01:30]} Nf6 {[%emt 0:00:00]} 4. cxd5 {[%emt 0:00:30]} exd5 {[%emt 0:00:30]} 5. Bg5 {[%emt 0:04:30]} Be7 {[%emt 0:00:30]} 6. e3 {[%emt 0:00:30]} c6 {[%emt 0:00:30]} 7. Bd3 {[%emt 0:00:30]} Nbd7 {[%emt 0:00:30]} 8. Nge2 {[%emt 0:00:00]} Nh5 {[%emt 0:01:30]} 9. Bxe7 {[%emt 0:01:00]} Qxe7 {[%emt 0:00:30]} 10. g4 {[%emt 0:00:30]} Nhf6 {[%emt 0:00:30]} 11. Ng3 {[%emt 0:00:00]} h6 {[%emt 0:12:30]} 12. Nf5 {[%emt 0:14:00]} Qf8 {[%emt 0:00:30]} 13. Qf3 {[%emt 0:01:30]} g6 {[%emt 0:11:30]} 14. Ng3 {[%emt 0:00:30]} Qe7 {[%emt 0:00:30]} 15. h3 {[%emt 0:16:30]} Nb6 {[%emt 0:01:30]} 1/2-1/2

[Event "Turkish Cup 2022"]
[Site "Sakarya"]
[Date "2022.03.30"]
[Round "9.3"]
[White "Zor, Alber Kadir"]
[Black "Ozsakallioglu, Okan"]
[Result "1/2-1/2"]
[ECO "B19"]
[WhiteElo "2147"]
[BlackElo "2270"]
[Annotator "NA"]
[PlyCount "47"]
[EventDate "2022.03.25"]
[EventType "swiss"]
[EventCountry "TUR"]
[SourceTitle "playchess.com"]
[Source "ChessBase"]
[SourceQuality "1"]
[TimeControl "5400+30"]

1. e4 {[%emt 0:03:00]} c6 {[%emt 0:06:00]} 2. d4 {[%emt 0:00:30]} d5 {[%emt 0:00:30]} 3. Nd2 {[%emt 0:00:30]} dxe4 {[%emt 0:00:30]} 4. Nxe4 {[%emt 0:00:30]} Bf5 {[%emt 0:00:30]} 5. Ng3 {[%emt 0:00:30]} Bg6 {[%emt 0:00:30]} 6. h4 {[%emt 0:00:30]} h6 {[%emt 0:00:30]} 7. Nf3 {[%emt 0:00:30]} Nd7 {[%emt 0:00:30]} 8. h5 {[%emt 0:00:30]} Bh7 {[%emt 0:00:30]} 9. Bd3 {[%emt 0:00:30]} Bxd3 {[%emt 0:00:30]} 10. Qxd3 {[%emt 0:00:30]} Ngf6 {[%emt 0:00:30]} 11. Bd2 {[%emt 0:00:00]} e6 {[%emt 0:00:00]} 12. O-O-O {[%emt 0:00:00]} Be7 {[%emt 0:00:00]} 13. Qe2 {[%emt 0:00:00]} O-O {[%emt 0:00:00]} 14. Nf1 {[%emt 0:00:00]} c5 {[%emt 0:00:00]} 15. g4 {[%emt 0:00:00]} cxd4 {[%emt 0:00:30]} 16. g5 {[%emt 0:00:00]} Nd5 {[%emt 0:00:00]} 17. gxh6 {[%emt 0:00:00]} Qb6 {[%emt 0:00:00]} 18. Rg1 {[%emt 0:00:00]} Ba3 {[%emt 0:00:00]} 19. Rxg7+ {[%emt 0:00:00]} Kh8 {[%emt 0:00:00]} 20. bxa3 {[%emt 0:00:00]} Nc3 {[%emt 0:00:00]} 21. Bxc3 {[%emt 0:00:00]} dxc3 {[%emt 0:00:00]} 22. Rh7+ {[%emt 0:00:00]} Kg8 {[%emt 0:00:30]} 23. Rg7+ {[%emt 0:00:30]} Kh8 {[%emt 0:00:30]} 24. Rh7+ {[%emt 0:00:30]} 1/2-1/2